Cogmind - Beta 13 @@@ ROGUE MODE // 2024.07.29 @ 03:03:31 Player: Hiredgoonthug Result: Destroyed by as-62472 with Assembled Rifle Performance ------------- Evolutions (0) 0 Regions Visited (4) 800 Robots Destroyed (3) 15 Value Destroyed (21) 21 Prototype IDs (1) 20 Alien Tech Used (0) 0 Bonus (300) 300 TOTAL SCORE: 1156 Bonus ------- Aligned with FarCom 300 Cogmind --------- Core Integrity 0/250 Matter 300/300 Energy 123/125 System Corruption 0% Temperature Cool (2) Movement Walking (90) Location -9/Mines Parts ------- > --- POWER (1) -------- Light Ion Engine > --- PROPULSION (2) --- Potential Leg Potential Leg > --- UTILITY (2) ------ Large Storage Unit Improved Terrain Scanner > --- WEAPON (2) ------- Small Laser > --- INVENTORY (15) --- Light Treads Light Treads Aluminum Leg Aluminum Leg Aluminum Leg Small Storage Unit Medium Armor Plating Peak State ------------ > --- POWER ------------ Light Ion Engine > --- PROPULSION ------- Potential Leg Potential Leg > --- UTILITY ---------- Large Storage Unit Seismic Detector > --- WEAPON ----------- Assault Rifle Light Assault Rifle > --- INVENTORY -------- Light Ion Engine Light Treads Light Treads Aluminum Leg Aluminum Leg Aluminum Leg Small Storage Unit Improved Terrain Scanner Small Laser Small Laser [Rating: 26] Favorites ----------- Power Light Ion Engine Engine Light Ion Engine Propulsion Aluminum Leg Leg Aluminum Leg Utility Large Storage Unit Device Seismic Detector Storage Large Storage Unit Weapon Assault Rifle Energy Gun Small Laser Ballistic Gun Assault Rifle Build | -11 -10 -10 -10 -9 ------- Run | Yrd Mat Min Exi Min Slots Evolved . | . . . . . Power . | . . . . . Propulsion . | . . . . . Utility . | . . . . . Weapon . | . . . . . Parts Attached 15 | 7 2 . 2 4 Power 2 | 1 . . . 1 Engine 2 | 1 . . . 1 Core . | . . . . . Reactor . | . . . . . Propulsion 4 | 2 . . 2 . Treads . | . . . . . Leg 4 | 2 . . 2 . Wheel . | . . . . . Hover . | . . . . . Flight . | . . . . . Utility 4 | 2 1 . . 1 Device 2 | 1 . . . 1 Storage 2 | 1 1 . . . Processor . | . . . . . Hackware . | . . . . . Protection . | . . . . . Artifact . | . . . . . Weapon 5 | 2 1 . . 2 Energy Gun 3 | 1 . . . 2 Energy Cannon . | . . . . . Ballistic Gun 2 | 1 1 . . . Ballistic Cannon . | . . . . . Launcher . | . . . . . Special Weapon . | . . . . . Impact Weapon . | . . . . . Slashing Weapon . | . . . . . Piercing Weapon . | . . . . . Special Melee Weapon . | . . . . . Unidentified Prototypes 1 | . . . 1 . Parts Lost 5 | . . . . 5 Power 1 | . . . . 1 Propulsion . | . . . . . Utility 1 | . . . . 1 Weapon 3 | . . . . 3 Highest Loss Streak 3 | . . . . 3 To Critical Strikes . | . . . . . Average Slot Usage (%) 97 | . 100 100 100 86 Engine 13 | . 14 14 14 13 Leg 28 | . 28 28 28 28 Device 13 | . 14 14 14 9 Storage 14 | . 14 14 14 14 Energy Gun 1 | . 3 . . 4 Ballistic Gun 24 | . 24 28 28 14 Naked Turns . | . . . . . Heaviest Build 27 | 12 27 27 27 27 Greatest Support 60 | 20 20 20 60 60 Greatest Overweight (x) 1 | . 1 1 1 . Average Overweight (x) . | . . 1 . . Largest Inventory Capacity 15 | 8 15 15 15 15 Average Capacity 14 | 7 14 15 15 15 Most Carried 11 | 6 8 8 10 11 Average Carried 8 | 3 7 8 8 9 Final Capacity 15 | 8 15 15 15 15 Final Carried 10 | 5 8 8 10 7 Class Distribution -------------------- 100% | Mutant Dominant Class ---------------- Mutant | -10/Materials Mutant | -10/Mines Mutant | -10/Exiles Mutant | -9/Mines Resources | -11 -10 -10 -10 -9 ----------- Run | Yrd Mat Min Exi Min Matter Collected 364 | 294 . 20 . 50 Remotely . | . . . . . Salvage Created 73 | 73 . . . . Parts 7 | 7 . . . . Haulers Intercepted . | . . . . . Recyclers Shooed 1 | 1 . . . . Parts Field Recycled . | . . . . . Retrieved Matter . | . . . . . Parts Self-Destructed . | . . . . . Prevented . | . . . . . Kills | -11 -10 -10 -10 -9 ------- Run | Yrd Mat Min Exi Min Combat Hostiles Destroyed . | . . . . . Classes Destroyed 1 | 1 . . . . Tunneler 3 | 3 . . . . Best Kill Streak 2 | 2 . . . . Combat Bots Only . | . . . . . Max Kills in Single Turn 1 | 1 . . . . Gunslinging . | . . . . . Exploded . | . . . . . Melee . | . . . . . Uniques/NPCs Destroyed . | . . . . . Combat | -11 -10 -10 -10 -9 -------- Run | Yrd Mat Min Exi Min Hostile Shots Fired 29 | . . . . 29 Missed 4 | . . . . 4 Damage Taken 901 | . . . . 901 Core 261 | . . . . 261 Absorbed by Shields . | . . . . . Core Remaining (%) 100 | 100 . . . . Volleys Fired 14 | 8 . . . 6 Largest 2 | 2 . . . 2 Hottest 60 | 60 . . . 40 Shots Fired 24 | 16 . . . 8 Gun 24 | 16 . . . 8 Cannon . | . . . . . Launcher . | . . . . . Special . | . . . . . Kinetic 12 | 8 . . . 4 Thermal 12 | 8 . . . 4 Explosive . | . . . . . Electromagnetic . | . . . . . Robot Hit Streak 4 | 4 . . . 4 Robot Miss Streak 4 | 4 . . . 1 Penetration Max . | . . . . . Secondary Targets . | . . . . . Shots Hit Robots 15 | 9 . . . 6 Core Hits 3 | 3 . . . . Critical Kills . | . . . . . Critical Parts Destroyed . | . . . . . Critical Strikes . | . . . . . Melee Attacks . | . . . . . Impact . | . . . . . Slashing . | . . . . . Piercing . | . . . . . Sneak Attacks . | . . . . . Combat Hostiles . | . . . . . Follow-up Attacks . | . . . . . Damage Inflicted 193 | 126 . . . 67 Guns 193 | 126 . . . 67 Cannons . | . . . . . Explosions . | . . . . . Melee . | . . . . . Ramming . | . . . . . Kinetic 100 | 67 . . . 33 Thermal 93 | 59 . . . 34 Explosive . | . . . . . Electromagnetic . | . . . . . Impact . | . . . . . Slashing . | . . . . . Piercing . | . . . . . Highest Corruption . | . . . . . Average Corruption . | . . . . . Corruption Purged . | . . . . . Corruption Blocked . | . . . . . Overload Shots . | . . . . . Overflow Damage . | . . . . . Projectiles . | . . . . . Explosions . | . . . . . Melee . | . . . . . Knockbacks . | . . . . . Impact . | . . . . . Kinetic . | . . . . . Secondary . | . . . . . Self-Inflicted Damage . | . . . . . Shots . | . . . . . Rammed . | . . . . . Targets Rammed . | . . . . . Kicked . | . . . . . Crushed . | . . . . . Highest Temperature 15 | . . . . 15 Average Temperature 12 | . . . . 12 Received Heat Transfer . | . . . . . Siege Activations . | . . . . . Robots Corrupted . | . . . . . Combat Hostiles . | . . . . . Parts Fried . | . . . . . Impact Corruptions . | . . . . . Robots Melted . | . . . . . Combat Hostiles . | . . . . . Parts Melted . | . . . . . Heat Transferred 200 | 125 . . . 75 Parts Sabotaged . | . . . . . Parts Stolen . | . . . . . Parts Stripped . | . . . . . Power Chain Reactions . | . . . . . Alert | -11 -10 -10 -10 -9 ------- Run | Yrd Mat Min Exi Min Peak Influence 15 | 15 9 3 . 15 Initial 9 | . 9 3 . . Average 4 | 6 9 3 . . Maximum Alert Level . | . . . . . Low Security (%) 100 | 100 100 100 . 100 Level 1 . | . . . . . Level 2 . | . . . . . Level 3 . | . . . . . Level 4 . | . . . . . Level 5 . | . . . . . High Security . | . . . . . Max Security . | . . . . . Squads Dispatched 2 | . 2 . . . Investigation 1 | . 1 . . . Extermination . | . . . . . Reinforcement 1 | . 1 . . . Assault . | . . . . . Garrison . | . . . . . Intercept . | . . . . . Searches Triggered . | . . . . . Construction Impeded . | . . . . . Haulers Reinforced . | . . . . . Active Scanning Responses . | . . . . . Cargo Convoy Interrupts . | . . . . . Stealth | -11 -10 -10 -10 -9 --------- Run | Yrd Mat Min Exi Min Distress Signals . | . . . . . Communications Jammed . | . . . . . Distress Signals . | . . . . . Times Spotted 11 | . . 2 . 9 Peak Tracking Total 6 | . . 1 . 6 Tactical Retreats 1 | . . . . 1 Traps | -11 -10 -10 -10 -9 ------- Run | Yrd Mat Min Exi Min Traps Triggered . | . . . . . Indirectly . | . . . . . Trap Hack Attempts . | . . . . . Triggered . | . . . . . Disarmed . | . . . . . Reprogrammed . | . . . . . Reused . | . . . . . Traps Extracted . | . . . . . Installed . | . . . . . Triggered . | . . . . . Machines | -11 -10 -10 -10 -9 ---------- Run | Yrd Mat Min Exi Min Machines Disabled . | . . . . . Max in Single Turn . | . . . . . Machines Repaired . | . . . . . Machines Dismantled . | . . . . . Machines Sabotaged . | . . . . . Overloaded Fab Kills . | . . . . . Hacking | -11 -10 -10 -10 -9 --------- Run | Yrd Mat Min Exi Min Machines Accessed . | . . . . . Terminals . | . . . . . Fabricators . | . . . . . Repair Stations . | . . . . . Recycling Units . | . . . . . Scanalyzers . | . . . . . Garrison Access . | . . . . . Total Hacks . | . . . . . Successful . | . . . . . Failed . | . . . . . Catastrophic . | . . . . . Database Lockouts . | . . . . . Manual 1 | . . . 1 . Terminals . | . . . . . Fabricators . | . . . . . Repair Stations . | . . . . . Recycling Units . | . . . . . Scanalyzers . | . . . . . Garrison Access . | . . . . . Terminal Hacks . | . . . . . Fabricator Hacks . | . . . . . Repair Station Hacks . | . . . . . Recycling Unit Hacks . | . . . . . Scanalyzer . | . . . . . Garrison Access Hacks . | . . . . . Unauthorized Hacks . | . . . . . Terminals . | . . . . . Fabricators . | . . . . . Repair Stations . | . . . . . Recycling Units . | . . . . . Scanalyzers . | . . . . . Garrison Access . | . . . . . Data Cores Recovered . | . . . . . Used . | . . . . . Hacking Detections . | . . . . . Full Trace Events . | . . . . . Feedback Events . | . . . . . Feedback Blocked . | . . . . . Robot Schematics Acquired . | . . . . . Robots Built . | . . . . . Authchips . | . . . . . Time . | . . . . . Total Robot Build Rating . | . . . . . Part Schematics Acquired . | . . . . . Parts Built . | . . . . . Authchips . | . . . . . Time . | . . . . . Total Part Build Rating . | . . . . . Parts Repaired . | . . . . . Time . | . . . . . Parts Recycled . | . . . . . Recycled Matter . | . . . . . Retrieved Matter . | . . . . . Retrieved Components . | . . . . . Parts Scanalyzed . | . . . . . Part Schematics Acquired . | . . . . . Parts Damaged . | . . . . . Bothacking | -11 -10 -10 -10 -9 ------------ Run | Yrd Mat Min Exi Min Used RIF Installer . | . . . . . Robots Hacked . | . . . . . Non-combat . | . . . . . Combat . | . . . . . Robot Hacks Applied . | . . . . . Relay Couplers Released . | . . . . . Fabnet Peak Effective % . | . . . . . Robots Rewired . | . . . . . Allies Hacked . | . . . . . Hacks Repelled . | . . . . . Allies | -11 -10 -10 -10 -9 -------- Run | Yrd Mat Min Exi Min Total Allies 3 | . . . . 3 Largest Group 3 | . . . . 3 Highest-Rated Group 40 | . . . . 40 Highest-Rated Ally 16 | . . . . 16 Total Orders . | . . . . . Ally Attacks 1 | . . . . 1 Total Damage 12 | . . . . 12 Kills . | . . . . . Allies Corrupted . | . . . . . Allies Melted . | . . . . . Intel | -11 -10 -10 -10 -9 ------- Run | Yrd Mat Min Exi Min Robot Analysis Total . | . . . . . Derelict Logs Recovered 1 | . . 1 . . Drone Launches . | . . . . . Drone Recoveries . | . . . . . Exploration | -11 -10 -10 -10 -9 ------------- Run | Yrd Mat Min Exi Min Turns Passed 940 | 121 113 70 465 171 Spaces Moved 702 | 70 58 37 371 166 Core 7 | 7 . . . . Treads . | . . . . . Legs 695 | 63 58 37 371 166 Wheels . | . . . . . Hover . | . . . . . Flight . | . . . . . Fastest Speed 50 | 50 120 190 90 90 Average Speed 123 | 113 186 190 123 90 Slowest Speed 190 | 120 190 190 190 90 Overloaded Moves . | . . . . . Propulsion Burnouts . | . . . . . Robots Hopped . | . . . . . Cave-ins Triggered . | . . . . . Exploration Rate (%) 29 | 5 19 12 86 27 Regions Visited 4 Branch Regions 3 Pre-discovered Areas . | . . . . . Known Exits Taken . | . . . . . Unknown Exits Taken 4 | 1 1 1 1 . Scrap Searched 2 | . . . . 2 Spaces Dug . | . . . . . Terrain Destroyed . | . . . . . Melee . | . . . . . Projectile . | . . . . . AOE . | . . . . . Terrain Rammed . | . . . . . Walls Destroyed . | . . . . . Machines Disabled . | . . . . . Actions | -11 -10 -10 -10 -9 --------- Run | Yrd Mat Min Exi Min Total 749 | 96 62 37 374 180 Wait 4 | . . 1 . 3 Move 698 | 69 57 36 370 166 Hop . | . . . . . Pick Up 18 | 12 3 . 2 1 Fast Attach . | . . . . . Attach 11 | 7 . . . 4 Detach . | . . . . . Swap 4 | . 2 . 2 . Drop . | . . . . . Fire 14 | 8 . . . 6 Melee . | . . . . . Ram . | . . . . . Kick . | . . . . . Crush . | . . . . . Escape Stasis . | . . . . . Rewire . | . . . . . Trap . | . . . . . Miscellaneous . | . . . . . Route ------- -11/Scrapyard -10/Materials -10/Mines -10/Exiles -9/Mines History --------- Turn | Location | Event 21 | -11/Scrapyard | Discovered new exit (range 14) 122 | -11/Scrapyard | Entered Materials 180 | -10/Materials | Discovered new exit (range 15) 204 | -10/Materials | Met 8R-AWN 235 | -10/Materials | Entered Mines 236 | -10/Mines | Followed 8R-AWN into the Mines 257 | -10/Mines | Learned Materials interactive machine intel 297 | -10/Mines | Discovered new exit (range 5) 305 | -10/Mines | Build established: Mutant 305 | -10/Mines | Entered Exiles 353 | -10/Exiles | Welcomed by 8R-AWN 391 | -10/Exiles | Met EX-HEX 450 | -10/Exiles | Met EX-BIN 480 | -10/Exiles | Aligned with FarCom system 482 | -10/Exiles | Given EX-Vault access code 532 | -10/Exiles | Opened EX-Vault 543 | -10/Exiles | Found Prototype Leg 546 | -10/Exiles | Found Prototype Leg 547 | -10/Exiles | Identified Potential Leg (x2) 571 | -10/Exiles | Warned to stay clear of 0b10 Research branches 597 | -10/Exiles | Met EX-DEC 627 | -10/Exiles | Visited The Gauntlet 758 | -10/Exiles | Discovered new exit (range 14) 770 | -10/Exiles | Left Exiles lab with Potential Leg 770 | -10/Exiles | Entered Mines 783 | -9/Mines | Assisted by bots powering up and referring to "LRC-V3" 786 | -9/Mines | Met a Derelict bent on vengeance 813 | -9/Mines | Assembled infested the area 878 | -9/Mines | Lost 3 allies 887 | -9/Mines | Core integrity fell below 50% 895 | -9/Mines | Core integrity fell below 20% 923 | -9/Mines | Lost 3 parts (1p2w) 941 | -9/Mines | Destroyed by as-62472 with Assembled Rifle Last Messages --------------- Assault Rifle destroyed. K-01 Serf collects debris. The unstable cave ceiling collapses. K-01 Serf collects debris. The unstable cave ceiling collapses. K-01 Serf collects debris. T-07 Excavator is excavating. Lgt. Ion Engine destroyed. Lgt. Assault Rifle destroyed. D-53 Grenadier destroyed. Sml. Laser destroyed. The unstable cave ceiling collapses. D-53 Grenadier destroyed. The unstable cave ceiling collapses. K-01 Serf collects debris. The unstable cave ceiling collapses. K-01 Serf destroyed. The unstable cave ceiling collapses. Acquired 28 matter. Acquired 2 matter. Map ----- +----------------------------------------------------+ | ???????????????# # ## ###??? | | ????????????#?# ## # # ## ##?? | | ??????????????# ## # #?? | | ??????????????## ## ###? | | ???????????????###?## #### #? | | ???????????????###### # ##? | | ???????????????# # #? | | ??????????????### # # # # #? | | ????????????? #| * ##? | | ????????????? # ###? | | ?????????????" # ## ##??? | | ???????????? # ##?? | | ????????????? # # # * ##? | | ????????????? ?#### # = #? | | ??????????????????## = #? | | ???????????????????# # #? | | ???????????????????##### # ##? | | ???????????????????????## ##? | | ????????????????????????### % #? | | ?????????????#??????????#?## #? | | ??????????????????????????## ##? | | ?????????????????????????## a ##?? | | ????????????????????????## a #??? | | ???????????????????????## #??? | | ??????????????#???????## ##??? | | ??????????????????????# @ ###???? | | ??????????????????????# ##?????? | | ??????????????????????# #??????? | | ?????????????????????# ##?????? | | ???????????????????? ##?????? | | ??????????????????? u ##??????? | | ?????????????????? a ????????? | | ????????????????? ????????? | | ????????????????=%a ????????? | | ???????????????# %## ###????????? | | ???????????????# ?###???????????? | | ???????????????# ????????????????? | | ?????????????????????????????????? | | ?????????????????????????????????? | | ?????????????????????????????????? | | ?????????????????????????????????? | | ?????????????????????????????????? | | ?????????????????????????????????? | | ?????????????????????????????????? | | ?????????????????????????????????? | | ?????????????????????????????????? | | ?????????????????????????????????? | | | | | | | +----------------------------------------------------+ Best States ------------- Heat Dissipation 25 Energy Generation 10 Energy Capacity 125 Matter Stores 300 Matter Capacity 300 Sight Range 16 Terrain Scan Range 16 Terrain Scan Density 10 Evasion (%) 57 Item Schematics ----------------- None Robot Schematics ------------------ None Fabricated ------------ Nothing Alien Tech Used ----------------- None Achievements -------------- None Challenges ------------ None Game ------ Seed NullBehemothMicroactuators Manual? 0 Play Time 00:12:37 Cumulative 5.2 hours Start 2024.07.29 @ 02:40:56 End 2024.07.29 @ 03:03:31 Sessions 1 Manual Loads 0 Difficulty Rogue Special Mode None Game No. 7 Rogue 7 Adventurer 0 Explorer 0 Win Type - Total 0 Types 0/0/0/0/0/0/0/0/0 Lore% 8 Gallery% 9 Achievement% 10 Wizard Run 0 Options --------- Layout 0 ASCII 0 Keyboard 0 Movement Mouse Keybinds 0 Fullscreen 2 Font 24/Smallcaps Map View 76x50 Zoom Use 0% Tactical HUD 0 Map Filters NONE Filters NONE Steam 1 RUN: 9c7ca1a4-f967-4bab-9641-d6b73a41cca1